{"text_format":"1","workbook":"xlsx","n_sheets":8,"sheets":["Identif","I.den SR","I.den cudz","I.ext SR","I.ext cudz","IV.den","IV.ext","V11a"],"not_rendered":{"charts":0,"images":7,"macros":1,"external_links":0,"defined_names":6,"comments":0,"pivot_tables":0},"unopened":[],"bounds":{"document_bytes":16777216,"sheet_cells":100000,"rows_first":2000,"rows_last":500,"rows_between":2000,"halvings":0,"cell_chars":16384,"cell_head_chars":4096},"cells_cut":0,"cells_raw":0,"read":"whole","date_system":"1900"}

{"sheet":"Identif","index":0,"n_rows":32,"n_cols":53,"rows_kept":32,"cut":false,"hidden":false,"merged":[[9,17,9,33],[3,32,3,35],[3,36,3,37],[3,38,3,46],[5,32,5,51],[3,47,3,50],[0,32,0,50],[1,32,2,35],[1,36,1,37],[1,38,1,46],[1,47,2,50],[2,36,2,37],[2,38,2,46],[15,1,15,8],[15,9,15,44],[15,45,15,47],[15,48,15,52],[11,1,11,8],[11,9,11,52],[13,1,13,8],[13,9,13,52],[17,1,17,8],[17,9,17,52],[23,32,23,46],[23,48,23,52],[24,32,24,52],[19,10,19,28],[19,32,19,52],[20,1,20,6],[20,10,20,28],[20,32,20,52],[25,32,25,52],[21,10,21,28],[21,32,21,52],[22,32,22,46],[22,48,22,52],[29,0,29,52],[30,0,30,52],[31,1,31,52],[32,1,32,52],[26,0,26,7],[26,8,26,13],[26,32,26,52],[28,0,28,52],[37,1,37,52],[38,1,38,52],[39,1,39,52],[33,1,33,52],[34,1,34,52],[35,1,35,52],[36,1,36,52]]}
[null,null,null,null,null,null,null,null,null,null,null,null,null,null,null,null,null,null,null,null,null,null,null,null,null,null,null,null,null,null,null,null,"Škol (MŠVVŠ SR)  11 - 01",null,null,null,null,null,null,null,null,null,null,null,null,null,null,null,null,null,null,null,"D"]
[null,null,null,null,null,null,null,null,null,null,null,null,null,null,null,null,null,null,null,null,null,null,null,null,null,null,null,null,null,null,null,null,"Rok",null,null,null,"Mes",null,"Identifikačné číslo",null,null,null,null,null,null,null,null,"Fakulta"]
[null,null,null,null,null,null,null,null,null,null,null,null,null,null,null,null,null,null,null,null,null,null,null,null,null,null,null,null,null,null,null,null,null,null,null,null,"iac"]
[null,null,null,null,null,null,null,null,null,null,null,null,null,null,null,null,null,null,null,null,null,null,null,null,null,null,null,null,null,null,null,null,"2023",null,null,null,"10"]
[]
[null,null,null,null,null,null,null,null,null,null,null,null,null,null,null,null,null,null,null,null,null,null,null,null,null,null,null,null,null,null,null,null,"Zber údajov podľa stavu: k 31. 10. 2023"]
[]
[]
[]
[null,null,null,null,null,null,null,null,null,null,null,null,null,null,null,null,null,"Doktorandské štúdium"]
[]
[null,"Vysoká škola"]
[]
[null,"Fakulta"]
[]
[null,"Miesto",null,null,null,null,null,null,null,null,null,null,null,null,null,null,null,null,null,null,null,null,null,null,null,null,null,null,null,null,null,null,null,null,null,null,null,null,null,null,null,null,null,null,null,"PSČ",null,null,91701]
[]
[null,"Ulica"]
[]
[null,null,null,null,null,null,null,null,null,null,"Podpis vedúceho",null,null,null,null,null,null,null,null,null,null,null,null,null,null,null,null,null,null,null,null,null,"Výkaz zostavil"]
[null,"Pečiatka",null,null,null,null,null,null,null,null,"spravodajskej jednotky"]
[]
[null,null,null,null,null,null,null,null,null,null,null,null,null,null,null,null,null,null,null,null,null,null,null,null,null,null,null,null,null,null,null,null,"Telefón",null,null,null,null,null,null,null,null,null,null,null,null,null,null,null,"Klapka"]
[]
[null,null,null,null,null,null,null,null,null,null,null,null,null,null,null,null,null,null,null,null,null,null,null,null,null,null,null,null,null,null,null,null,"E-mail"]
[]
["Odoslané dňa"]
[]
["Polia oranžovej farby musia byť povinne vyplnené (identifikačná časť) alebo označujú nepríspustnú chybu"]
["(údajová časť). Po vyplnení nesmie na formulári byť oranžové pole. Formulár s oranžovým poľom je chybný."]
["Komentár k výkazu (vyplníte povinne, ak na formulári ostalo žlté pole - možná chyba)"]
[null,"Nezabudnite vyplniť samoplatcov!"]

{"sheet":"I.den SR","index":1,"n_rows":9,"n_cols":46,"rows_kept":9,"cut":false,"hidden":false,"merged":[[6,24,6,26],[0,20,0,29],[1,4,2,5],[5,27,5,29],[5,20,5,21],[4,22,4,23],[6,22,6,23],[5,22,5,23],[5,24,5,26],[4,24,4,25],[4,26,4,29],[6,20,6,21],[0,0,0,4],[0,5,0,16],[6,27,6,29],[4,20,4,21],[1,18,2,19],[1,20,3,29],[2,14,2,15],[2,12,2,13],[5,0,5,3],[6,0,6,3],[2,10,2,11],[1,0,2,3],[1,6,1,17],[2,16,2,17],[4,0,4,3],[2,8,2,9],[2,6,2,7],[7,3,8,3],[7,21,7,29],[7,1,8,1],[7,2,8,2],[7,4,7,19],[8,21,8,22],[8,23,8,24],[8,25,8,26],[8,27,8,28]]}
["I. Zapísaní študujúci (fyzické osoby)",null,null,null,null,"DENNÁ FORMA - SLOVENSKÉ ŠTÁTNE OBČIANSTVO",null,null,null,null,null,null,null,null,null,null,null,"Fakulta",null,{"$f":"Identif!AV4","v":0}]
["Študijné odbory a programy",null,null,null,"1. - 6.",null,"v akademickom roku",null,null,null,null,null,null,null,null,null,null,null,"Novoprijatí",null,"Výpis chýb v jednotlivých riadkoch"]
[null,null,null,null,null,null,"1.",null,"2.",null,"3.",null,"4.",null,"5.",null,"6.",null,null,null,null,null,null,null,null,null,null,null,null,null,null,null,null,null,null,null,null,null,null,null,null,null,null,null,"kod_uip","nazov_uip"]
["kód","dĺžka","druh","forma","spolu","ženy","spolu","ženy","spolu","ženy","spolu","ženy","spolu","ženy","spolu","ženy","spolu","ženy","spolu","ženy"]
["celkom",null,null,null,{"$f":"SUM(G5+I5+K5+M5+O5+Q5)","v":0},{"$f":"SUM(H5+J5+L5+N5+P5+R5)","v":0},{"$f":"SUM(G9:G1498)","v":0},{"$f":"SUM(H9:H1498)","v":0},0,0,0,0,0,0,0,0,0,0,0,0,{"$f":"IF(G6>G5,\"Opakujúci > CELKOM 1. ročník\",IF(I6>I5,\"Opakujúci > CELKOM 2. ročník\",IF(K6>K5,\"Opakujúci > CELKOM 3. ročník\",IF(M6>M5,\"Opakujúci > CELKOM 4. ročník\",IF(O6>O5,\"Opakujúci > CELKOM 5. ročník\",IF(Q6>Q5,\"Opakujúci > CELKOM 6. ročník\",\" \"))))))","v":" "},null,{"$f":"IF(H6>H5,\"Opak. ženy > CELKOM 1. r\",IF(J6>J5,\"Opak. ženy > CELKOM 2. r\",IF(L6>L5,\"Opak. ženy > CELKOM 3. r\",IF(N6>N5,\"Opak. ženy > CELKOM 4. r\",IF(P6>P5,\"Opak. ženy > CELKOM 5. r\",IF(R6>R5,\"Opak. ženy > CELKOM 6. r\",\" \"))))))","v":" "},null,{"$f":"IF(G7>G5,\"Samoplatci > CELKOM 1. ročník\",IF(I7>I5,\"Samoplatci > CELKOM 2. ročník\",IF(K7>K5,\"Samoplatci > CELKOM 3. ročník\",IF(M7>M5,\"Samoplatci > CELKOM 4. ročník\",IF(O7>O5,\"Samoplatci > CELKOM 5. ročník\",IF(Q7>Q5,\"Samoplatci > CELKOM 6. ročník\",IF(S7>S5,\"Samoplatci > CELKOM novopr.\",\" \")))))))","v":" "},null,{"$f":"IF(H7>H5,\"Samopl. ženy > CELKOM 1. ročník ženy\",IF(J7>J5,\"Samopl. ženy > CELKOM 2. ročník ženy\",IF(L7>L5,\"Samopl. ženy > CELKOM 3. ročník ženy\",IF(N7>N5,\"Samopl. ženy > CELKOM 4. ročník ženy\",IF(P7>P5,\"Samopl. ženy > CELKOM 5. ročník ženy\",IF(R7>R5,\"Samopl. ženy > CELKOM 6. ročník ženy\",IF(T7>T5,\"Samopl. ženy > CELKOM ženy novoprijaté\",\" \")))))))","v":" "}]
[null,null,null,null,0,0,null,null,null,null,null,null,null,null,null,null,null,null,null,null,{"$f":"IF(G6<H6,\"Opak. ženy > spolu 1. ročník\",IF(I6<J6,\"Opak. ženy > spolu 2. ročník\",IF(K6<L6,\"Opak. ženy > spolu 3. ročník\",IF(M6<N6,\"Opak. ženy > spolu 4. ročník\",IF(O6<P6,\"Opak. ženy > spolu 5. ročník\",IF(Q6<R6,\"Opak. ženy > spolu 6. ročník\",\" \"))))))","v":" "},null,{"$f":"IF(G6<S6,\"Opak. novo > 1. ročník\",IF(H6<T6,\"Opak. ženy novo > ženy 1. roč.\",\" \"))","v":" "},null,{"$f":"IF(AND(G5=G6,  H5<>H6),\"1. ročník CELKOM ženy<>ženy opak.\",IF(AND(I5=I6, J5<>J6),\"2. ročník CELKOM ženy<>ženy opak.\",IF(AND(K5=K6, L5<>L6),\"3. ročník CELKOM ženy<>ženy opak.\", IF(AND(M5=M6, N5<>N6),\"4. ročník CELKOM ženy<>ženy opak.\",IF(AND(O5=O6, P5<>P6),\"5. ročník CELKOM ženy<>ženy opak.\",IF(AND(Q5=Q6, R5<>R6),\"6. ročník CELKOM ženy<>ženy opak.\",\" \"))))))","v":" "},null,null,{"$f":"IF(G5-H5<G6-H6,\"1. CELKOM ženy nesedia na ženy opak.\",IF(I5-J5<I6-J6,\"2. CELKOM ženy nesedia na ženy opak.\",IF(K5-L5<K6-L6,\"3. CELKOM ženy nesedia na ženy opak.\", IF(M5-N5<M6-N6,\"4. CELKOM ženy nesedia na ženy opak.\",IF(O5-P5<O6-P6,\"5. CELKOM ženy nesedia na ženy opak.\",IF(Q5-R5<Q6-R6,\"6. CELKOM ženy nesedia na ženy opak.\",\" \"))))))","v":" "}]
["z celkového počtu samoplatci, platci",null,null,null,0,0,null,null,null,null,null,null,null,null,null,null,null,null,null,null,{"$f":"IF(G7<H7,\"Samopl. ženy > spolu 1. ročník\",IF(I7<J7,\"Samopl. ženy > spolu 2. ročník\",IF(K7<L7,\"Samopl. ženy > spolu 3. ročník\",IF(M7<N7,\"Samopl. ženy > spolu 4. ročník\",IF(O7<P7,\"Samopl.. ženy > spolu 5. ročník\",IF(Q7<R7,\"Samopl. ženy > spolu 6. ročník\",IF(S7<T7,\"Samopl. ženy > spolu novoprijatí\",\" \")))))))","v":" "},null,{"$f":"IF(G7<S7,\"Sam. novo > 1.ročník\",IF(H7<T7,\"Sam. ženy novo > ženy 1. roč\",IF(AND(G7>0,S7=0),\"Sam. 1. roč > 0 a novo = 0\",\" \")))","v":" "},null,{"$f":"IF(AND(G5=G7,  H5<>H7),\"1. ročník CELKOM ženy<>ženy samop.\",IF(AND(I5=I7, J5<>J7),\"2. ročník CELKOM ženy<>ženy samop.\",IF(AND(K5=K7, L5<>L7),\"3. ročník CELKOM ženy<>ženy samop.\", IF(AND(M5=M7, N5<>N7),\"4. ročník CELKOM ženy<>ženy samop.\",IF(AND(O5=O7, P5<>P7),\"5. ročník CELKOM ženy<>ženy samop.\",IF(AND(Q5=Q7, R5<>R7),\"6. ročník CELKOM ženy<>ženy samop.\",IF(AND(S5=S7, T5<>T7),\"Novo CELKOM ženy<>ženy samop.\",\" \")))))))","v":" "},null,null,{"$f":"IF(G5-H5<G7-H7,\"1. CELKOM ženy nesedia na ženy sam.\",IF(I5-J5<I7-J7,\"2. CELKOM ženy nesedia na ženy sam.\",IF(K5-L5<K7-L7,\"3. CELKOM ženy nesedia na ženy sam.\", IF(M5-N5<M7-N7,\"4. CELKOM ženy nesedia na ženy sam.\",IF(O5-P5<O7-P7,\"5. CELKOM ženy nesedia na ženy sam.\",IF(Q5-R5<Q7-R7,\"6. CELKOM ženy nesedia na ženy sam.\",IF(S5-T5<S7-T7,\"Novo. CELKOM ženy nesedia na ženy sam.\",\" \")))))))","v":" "}]
[null,null,"99",null,null,null,null,null,null,null,null,null,null,null,null,null,null,null,null,null,{"$f":"CONCATENATE(A8,\"/\",A9)","v":"/"},{"$f":"E8","v":0}]
[null,null,null,null,{"$f":"SUM(G9+I9+K9+M9+O9+Q9)","v":0},{"$f":"SUM(H9+J9+L9+N9+P9+R9)","v":0},null,null,null,null,null,null,null,null,null,null,null,null,null,null,{"$f":"IF(G9<S9,\"NOVO\",IF(H9<T9,\"NOVO ženy\",\" \"))","v":" "},{"$f":"IF(S9=G9,IF(T9<>H9,\"Novo ženy<>ženy 1r\",\" \"),IF(G9-H9<S9-T9,\"Nesprávne ženy\",\" \"))","v":" "},null,{"$f":"IF(G9>1,IF(S9=0,\"Nevyplnení novo\",\" \"),\" \")","v":" "},null,{"$f":"IF(G9<H9,\"ŽENY 1.\",IF(I9<J9,\"ŽENY 2.\",IF(K9<L9,\"ŽENY 3.\",IF(M9<N9,\"ŽENY 4.\",IF(O9<P9,\"ŽENY 5.\",IF(Q9<R9,\"ŽENY 6.\",IF(S9<T9,\"ŽENY novo\",\" \")))))))","v":" "},null,{"$f":"IF(AND(A8>0,E9=0),\"nulové údaje\",\" \")","v":" "}]

{"sheet":"I.den cudz","index":2,"n_rows":9,"n_cols":46,"rows_kept":9,"cut":false,"hidden":false,"merged":[[2,6,2,7],[5,0,5,3],[6,0,6,3],[7,3,8,3],[7,1,8,1],[7,2,8,2],[1,20,3,29],[2,10,2,11],[2,14,2,15],[2,12,2,13],[2,8,2,9],[6,27,6,29],[4,0,4,3],[0,20,0,29],[1,4,2,5],[5,27,5,29],[5,20,5,21],[0,0,0,4],[0,5,0,16],[1,18,2,19],[1,6,1,17],[1,0,2,3],[2,16,2,17],[5,22,5,23],[5,24,5,26],[4,24,4,25],[4,26,4,29],[8,27,8,28],[8,21,8,22],[8,23,8,24],[8,25,8,26],[7,21,7,29],[4,20,4,21],[4,22,4,23],[6,22,6,23],[7,4,7,19],[6,24,6,26],[6,20,6,21]]}
["I. Zapísaní študujúci (fyzické osoby)",null,null,null,null,"DENNÁ FORMA - CUDZINCI",null,null,null,null,null,null,null,null,null,null,null,"Fakulta",null,{"$f":"Identif!AV4","v":0}]
["Študijné odbory a programy",null,null,null,"1. - 6.",null,"v akademickom roku",null,null,null,null,null,null,null,null,null,null,null,"Novoprijatí",null,"Výpis chýb v jednotlivých riadkoch"]
[null,null,null,null,null,null,"1.",null,"2.",null,"3.",null,"4.",null,"5.",null,"6.",null,null,null,null,null,null,null,null,null,null,null,null,null,null,null,null,null,null,null,null,null,null,null,null,null,null,null,"kod_uip","nazov_uip"]
["kód","dĺžka","druh","forma","spolu","ženy","spolu","ženy","spolu","ženy","spolu","ženy","spolu","ženy","spolu","ženy","spolu","ženy","spolu","ženy"]
["celkom",null,null,null,{"$f":"SUM(G5+I5+K5+M5+O5+Q5)","v":0},{"$f":"SUM(H5+J5+L5+N5+P5+R5)","v":0},{"$f":"SUM(G9:G1500)","v":0},{"$f":"SUM(H9:H1500)","v":0},0,0,0,0,0,0,0,0,0,0,0,0,{"$f":"IF(G6>G5,\"Opakujúci > CELKOM 1. ročník\",IF(I6>I5,\"Opakujúci > CELKOM 2. ročník\",IF(K6>K5,\"Opakujúci > CELKOM 3. ročník\",IF(M6>M5,\"Opakujúci > CELKOM 4. ročník\",IF(O6>O5,\"Opakujúci > CELKOM 5. ročník\",IF(Q6>Q5,\"Opakujúci > CELKOM 6. ročník\",\" \"))))))","v":" "},null,{"$f":"IF(H6>H5,\"Opak. ženy > CELKOM 1. r\",IF(J6>J5,\"Opak. ženy > CELKOM 2. r\",IF(L6>L5,\"Opak. ženy > CELKOM 3. r\",IF(N6>N5,\"Opak. ženy > CELKOM 4. r\",IF(P6>P5,\"Opak. ženy > CELKOM 5. r\",IF(R6>R5,\"Opak. ženy > CELKOM 6. r\",\" \"))))))","v":" "},null,{"$f":"IF(G7>G5,\"Samoplatci > CELKOM 1. ročník\",IF(I7>I5,\"Samoplatci > CELKOM 2. ročník\",IF(K7>K5,\"Samoplatci > CELKOM 3. ročník\",IF(M7>M5,\"Samoplatci > CELKOM 4. ročník\",IF(O7>O5,\"Samoplatci > CELKOM 5. ročník\",IF(Q7>Q5,\"Samoplatci > CELKOM 6. ročník\",IF(S7>S5,\"Samoplatci > CELKOM novopr.\",\" \")))))))","v":" "},null,{"$f":"IF(H7>H5,\"Samopl. ženy > CELKOM 1. ročník ženy\",IF(J7>J5,\"Samopl. ženy > CELKOM 2. ročník ženy\",IF(L7>L5,\"Samopl. ženy > CELKOM 3. ročník ženy\",IF(N7>N5,\"Samopl. ženy > CELKOM 4. ročník ženy\",IF(P7>P5,\"Samopl. ženy > CELKOM 5. ročník ženy\",IF(R7>R5,\"Samopl. ženy > CELKOM 6. ročník ženy\",IF(T7>T5,\"Samopl. ženy > CELKOM ženy novoprijaté\",\" \")))))))","v":" "}]
[null,null,null,null,{"$f":"SUM(G6+I6+K6+M6+O6+Q6)","v":0},{"$f":"SUM(H6+J6+L6+N6+P6+R6)","v":0},null,null,null,null,null,null,null,null,null,null,null,null,null,null,{"$f":"IF(G6<H6,\"Opak. ženy > spolu 1. ročník\",IF(I6<J6,\"Opak. ženy > spolu 2. ročník\",IF(K6<L6,\"Opak. ženy > spolu 3. ročník\",IF(M6<N6,\"Opak. ženy > spolu 4. ročník\",IF(O6<P6,\"Opak. ženy > spolu 5. ročník\",IF(Q6<R6,\"Opak. ženy > spolu 6. ročník\",\" \"))))))","v":" "},null,{"$f":"IF(G6<S6,\"Opak. novo > 1. ročník\",IF(H6<T6,\"Opak. ženy novo > ženy 1. roč.\",\" \"))","v":" "},null,{"$f":"IF(AND(G5=G6,  H5<>H6),\"1. ročník CELKOM ženy<>ženy opak.\",IF(AND(I5=I6, J5<>J6),\"2. ročník CELKOM ženy<>ženy opak.\",IF(AND(K5=K6, L5<>L6),\"3. ročník CELKOM ženy<>ženy opak.\", IF(AND(M5=M6, N5<>N6),\"4. ročník CELKOM ženy<>ženy opak.\",IF(AND(O5=O6, P5<>P6),\"5. ročník CELKOM ženy<>ženy opak.\",IF(AND(Q5=Q6, R5<>R6),\"6. ročník CELKOM ženy<>ženy opak.\",\" \"))))))","v":" "},null,null,{"$f":"IF(G5-H5<G6-H6,\"1. CELKOM ženy nesedia na ženy opak.\",IF(I5-J5<I6-J6,\"2. CELKOM ženy nesedia na ženy opak.\",IF(K5-L5<K6-L6,\"3. CELKOM ženy nesedia na ženy opak.\", IF(M5-N5<M6-N6,\"4. CELKOM ženy nesedia na ženy opak.\",IF(O5-P5<O6-P6,\"5. CELKOM ženy nesedia na ženy opak.\",IF(Q5-R5<Q6-R6,\"6. CELKOM ženy nesedia na ženy opak.\",\" \"))))))","v":" "}]
["z celkového počtu samoplatci, platci",null,null,null,0,0,null,null,null,null,null,null,null,null,null,null,null,null,null,null,{"$f":"IF(G7<H7,\"Samopl. ženy > spolu 1. ročník\",IF(I7<J7,\"Samopl. ženy > spolu 2. ročník\",IF(K7<L7,\"Samopl. ženy > spolu 3. ročník\",IF(M7<N7,\"Samopl. ženy > spolu 4. ročník\",IF(O7<P7,\"Samopl.. ženy > spolu 5. ročník\",IF(Q7<R7,\"Samopl. ženy > spolu 6. ročník\",IF(S7<T7,\"Samopl. ženy > spolu novoprijatí\",\" \")))))))","v":" "},null,{"$f":"IF(G7<S7,\"Sam. novo > 1.ročník\",IF(H7<T7,\"Sam. ženy novo > ženy 1. roč\",IF(AND(G7>0,S7=0),\"Sam. 1. roč > 0 a novo = 0\",\" \")))","v":" "},null,{"$f":"IF(AND(G5=G7,  H5<>H7),\"1. ročník CELKOM ženy<>ženy samop.\",IF(AND(I5=I7, J5<>J7),\"2. ročník CELKOM ženy<>ženy samop.\",IF(AND(K5=K7, L5<>L7),\"3. ročník CELKOM ženy<>ženy samop.\", IF(AND(M5=M7, N5<>N7),\"4. ročník CELKOM ženy<>ženy samop.\",IF(AND(O5=O7, P5<>P7),\"5. ročník CELKOM ženy<>ženy samop.\",IF(AND(Q5=Q7, R5<>R7),\"6. ročník CELKOM ženy<>ženy samop.\",IF(AND(S5=S7, T5<>T7),\"Novo CELKOM ženy<>ženy samop.\",\" \")))))))","v":" "},null,null,{"$f":"IF(G5-H5<G7-H7,\"1. CELKOM ženy nesedia na ženy sam.\",IF(I5-J5<I7-J7,\"2. CELKOM ženy nesedia na ženy sam.\",IF(K5-L5<K7-L7,\"3. CELKOM ženy nesedia na ženy sam.\", IF(M5-N5<M7-N7,\"4. CELKOM ženy nesedia na ženy sam.\",IF(O5-P5<O7-P7,\"5. CELKOM ženy nesedia na ženy sam.\",IF(Q5-R5<Q7-R7,\"6. CELKOM ženy nesedia na ženy sam.\",IF(S5-T5<S7-T7,\"Novo. CELKOM ženy nesedia na ženy sam.\",\" \")))))))","v":" "}]
[null,null,"99",null,null,null,null,null,null,null,null,null,null,null,null,null,null,null,null,null,{"$f":"CONCATENATE(A8,\"/\",A9)","v":"/"},{"$f":"E8","v":0}]
[null,null,null,null,{"$f":"SUM(G9+I9+K9+M9+O9+Q9)","v":0},{"$f":"SUM(H9+J9+L9+N9+P9+R9)","v":0},null,null,null,null,null,null,null,null,null,null,null,null,null,null,{"$f":"IF(G9<S9,\"NOVO\",IF(H9<T9,\"NOVO ženy\",\" \"))","v":" "},{"$f":"IF(S9=G9,IF(T9<>H9,\"Novo ženy<>ženy 1r\",\" \"),IF(G9-H9<S9-T9,\"Nesprávne ženy\",\" \"))","v":" "},null,{"$f":"IF(G9>1,IF(S9=0,\"Nevyplnení novo\",\" \"),\" \")","v":" "},null,{"$f":"IF(G9<H9,\"ŽENY 1.\",IF(I9<J9,\"ŽENY 2.\",IF(K9<L9,\"ŽENY 3.\",IF(M9<N9,\"ŽENY 4.\",IF(O9<P9,\"ŽENY 5.\",IF(Q9<R9,\"ŽENY 6.\",IF(S9<T9,\"ŽENY novo\",\" \")))))))","v":" "},null,{"$f":"IF(AND(A8>0,E9=0),\"nulové údaje\",\" \")","v":" "}]

{"sheet":"I.ext SR","index":3,"n_rows":9,"n_cols":46,"rows_kept":9,"cut":false,"hidden":false,"merged":[[4,20,4,21],[4,22,4,23],[1,6,1,17],[2,16,2,17],[0,20,0,29],[1,18,2,19],[0,0,0,4],[0,5,0,16],[2,14,2,15],[2,12,2,13],[5,0,5,3],[7,3,8,3],[1,0,2,3],[7,1,8,1],[4,0,4,3],[6,0,6,3],[7,2,8,2],[7,4,7,19],[2,10,2,11],[2,8,2,9],[2,6,2,7],[1,4,2,5],[8,27,8,28],[8,21,8,22],[8,23,8,24],[8,25,8,26],[1,20,3,29],[7,21,7,29],[6,27,6,29],[6,22,6,23],[5,22,5,23],[5,24,5,26],[6,24,6,26],[6,20,6,21],[5,27,5,29],[5,20,5,21],[4,24,4,25],[4,26,4,29]]}
["I. Zapísaní študujúci (fyzické osoby)",null,null,null,null,"EXTERNÁ FORMA - SLOVENSKÉ ŠTÁTNE OBČIANSTVO",null,null,null,null,null,null,null,null,null,null,null,"Fakulta",null,{"$f":"Identif!AV4","v":0}]
["Študijné odbory a programy",null,null,null,"1. - 6.",null,"v akademickom roku",null,null,null,null,null,null,null,null,null,null,null,"Novoprijatí",null,"Výpis chýb v jednotlivých riadkoch"]
[null,null,null,null,null,null,"1.",null,"2.",null,"3.",null,"4.",null,"5.",null,"6.",null,null,null,null,null,null,null,null,null,null,null,null,null,null,null,null,null,null,null,null,null,null,null,null,null,null,null,"kod_uip","nazov_uip"]
["kód","dĺžka","druh","forma","spolu","ženy","spolu","ženy","spolu","ženy","spolu","ženy","spolu","ženy","spolu","ženy","spolu","ženy","spolu","ženy"]
["celkom",null,null,null,{"$f":"SUM(G5+I5+K5+M5+O5+Q5)","v":0},{"$f":"SUM(H5+J5+L5+N5+P5+R5)","v":0},{"$f":"SUM(G9:G1500)","v":0},{"$f":"SUM(H9:H1500)","v":0},0,0,0,0,0,0,0,0,0,0,0,0,{"$f":"IF(G6>G5,\"Opakujúci > CELKOM 1. ročník\",IF(I6>I5,\"Opakujúci > CELKOM 2. ročník\",IF(K6>K5,\"Opakujúci > CELKOM 3. ročník\",IF(M6>M5,\"Opakujúci > CELKOM 4. ročník\",IF(O6>O5,\"Opakujúci > CELKOM 5. ročník\",IF(Q6>Q5,\"Opakujúci > CELKOM 6. ročník\",\" \"))))))","v":" "},null,{"$f":"IF(H6>H5,\"Opak. ženy > CELKOM 1. r\",IF(J6>J5,\"Opak. ženy > CELKOM 2. r\",IF(L6>L5,\"Opak. ženy > CELKOM 3. r\",IF(N6>N5,\"Opak. ženy > CELKOM 4. r\",IF(P6>P5,\"Opak. ženy > CELKOM 5. r\",IF(R6>R5,\"Opak. ženy > CELKOM 6. r\",\" \"))))))","v":" "},null,{"$f":"IF(G7>G5,\"Samoplatci > CELKOM 1. ročník\",IF(I7>I5,\"Samoplatci > CELKOM 2. ročník\",IF(K7>K5,\"Samoplatci > CELKOM 3. ročník\",IF(M7>M5,\"Samoplatci > CELKOM 4. ročník\",IF(O7>O5,\"Samoplatci > CELKOM 5. ročník\",IF(Q7>Q5,\"Samoplatci > CELKOM 6. ročník\",IF(S7>S5,\"Samoplatci > CELKOM novopr.\",\" \")))))))","v":" "},null,{"$f":"IF(H7>H5,\"Samopl. ženy > CELKOM 1. ročník ženy\",IF(J7>J5,\"Samopl. ženy > CELKOM 2. ročník ženy\",IF(L7>L5,\"Samopl. ženy > CELKOM 3. ročník ženy\",IF(N7>N5,\"Samopl. ženy > CELKOM 4. ročník ženy\",IF(P7>P5,\"Samopl. ženy > CELKOM 5. ročník ženy\",IF(R7>R5,\"Samopl. ženy > CELKOM 6. ročník ženy\",IF(T7>T5,\"Samopl. ženy > CELKOM ženy novoprijaté\",\" \")))))))","v":" "}]
[null,null,null,null,{"$f":"SUM(G6+I6+K6+M6+O6+Q6)","v":0},{"$f":"SUM(H6+J6+L6+N6+P6+R6)","v":0},null,null,null,null,null,null,null,null,null,null,null,null,null,null,{"$f":"IF(G6<H6,\"Opak. ženy > spolu 1. ročník\",IF(I6<J6,\"Opak. ženy > spolu 2. ročník\",IF(K6<L6,\"Opak. ženy > spolu 3. ročník\",IF(M6<N6,\"Opak. ženy > spolu 4. ročník\",IF(O6<P6,\"Opak. ženy > spolu 5. ročník\",IF(Q6<R6,\"Opak. ženy > spolu 6. ročník\",\" \"))))))","v":" "},null,{"$f":"IF(G6<S6,\"Opak. novo > 1. ročník\",IF(H6<T6,\"Opak. ženy novo > ženy 1. roč.\",\" \"))","v":" "},null,{"$f":"IF(AND(G5=G6,  H5<>H6),\"1. ročník CELKOM ženy<>ženy opak.\",IF(AND(I5=I6, J5<>J6),\"2. ročník CELKOM ženy<>ženy opak.\",IF(AND(K5=K6, L5<>L6),\"3. ročník CELKOM ženy<>ženy opak.\", IF(AND(M5=M6, N5<>N6),\"4. ročník CELKOM ženy<>ženy opak.\",IF(AND(O5=O6, P5<>P6),\"5. ročník CELKOM ženy<>ženy opak.\",IF(AND(Q5=Q6, R5<>R6),\"6. ročník CELKOM ženy<>ženy opak.\",\" \"))))))","v":" "},null,null,{"$f":"IF(G5-H5<G6-H6,\"1. CELKOM ženy nesedia na ženy opak.\",IF(I5-J5<I6-J6,\"2. CELKOM ženy nesedia na ženy opak.\",IF(K5-L5<K6-L6,\"3. CELKOM ženy nesedia na ženy opak.\", IF(M5-N5<M6-N6,\"4. CELKOM ženy nesedia na ženy opak.\",IF(O5-P5<O6-P6,\"5. CELKOM ženy nesedia na ženy opak.\",IF(Q5-R5<Q6-R6,\"6. CELKOM ženy nesedia na ženy opak.\",\" \"))))))","v":" "}]
["z celkového počtu samoplatci, platci",null,null,null,0,0,null,null,null,null,null,null,null,null,null,null,null,null,null,null,{"$f":"IF(G7<H7,\"Samopl. ženy > spolu 1. ročník\",IF(I7<J7,\"Samopl. ženy > spolu 2. ročník\",IF(K7<L7,\"Samopl. ženy > spolu 3. ročník\",IF(M7<N7,\"Samopl. ženy > spolu 4. ročník\",IF(O7<P7,\"Samopl.. ženy > spolu 5. ročník\",IF(Q7<R7,\"Samopl. ženy > spolu 6. ročník\",IF(S7<T7,\"Samopl. ženy > spolu novoprijatí\",\" \")))))))","v":" "},null,{"$f":"IF(G7<S7,\"Sam. novo > 1.ročník\",IF(H7<T7,\"Sam. ženy novo > ženy 1. roč\",IF(AND(G7>0,S7=0),\"Sam. 1. roč > 0 a novo = 0\",\" \")))","v":" "},null,{"$f":"IF(AND(G5=G7,  H5<>H7),\"1. ročník CELKOM ženy<>ženy samop.\",IF(AND(I5=I7, J5<>J7),\"2. ročník CELKOM ženy<>ženy samop.\",IF(AND(K5=K7, L5<>L7),\"3. ročník CELKOM ženy<>ženy samop.\", IF(AND(M5=M7, N5<>N7),\"4. ročník CELKOM ženy<>ženy samop.\",IF(AND(O5=O7, P5<>P7),\"5. ročník CELKOM ženy<>ženy samop.\",IF(AND(Q5=Q7, R5<>R7),\"6. ročník CELKOM ženy<>ženy samop.\",IF(AND(S5=S7, T5<>T7),\"Novo CELKOM ženy<>ženy samop.\",\" \")))))))","v":" "},null,null,{"$f":"IF(G5-H5<G7-H7,\"1. CELKOM ženy nesedia na ženy sam.\",IF(I5-J5<I7-J7,\"2. CELKOM ženy nesedia na ženy sam.\",IF(K5-L5<K7-L7,\"3. CELKOM ženy nesedia na ženy sam.\", IF(M5-N5<M7-N7,\"4. CELKOM ženy nesedia na ženy sam.\",IF(O5-P5<O7-P7,\"5. CELKOM ženy nesedia na ženy sam.\",IF(Q5-R5<Q7-R7,\"6. CELKOM ženy nesedia na ženy sam.\",IF(S5-T5<S7-T7,\"Novo. CELKOM ženy nesedia na ženy sam.\",\" \")))))))","v":" "}]
[null,null,"99",null,null,null,null,null,null,null,null,null,null,null,null,null,null,null,null,null,{"$f":"CONCATENATE(A8,\"/\",A9)","v":"/"},{"$f":"E8","v":0}]
[null,null,null,null,{"$f":"SUM(G9+I9+K9+M9+O9+Q9)","v":0},{"$f":"SUM(H9+J9+L9+N9+P9+R9)","v":0},null,null,null,null,null,null,null,null,null,null,null,null,null,null,{"$f":"IF(G9<S9,\"NOVO\",IF(H9<T9,\"NOVO ženy\",\" \"))","v":" "},{"$f":"IF(S9=G9,IF(T9<>H9,\"Novo ženy<>ženy 1r\",\" \"),IF(G9-H9<S9-T9,\"Nesprávne ženy\",\" \"))","v":" "},null,{"$f":"IF(G9>1,IF(S9=0,\"Nevyplnení novo\",\" \"),\" \")","v":" "},null,{"$f":"IF(G9<H9,\"ŽENY 1.\",IF(I9<J9,\"ŽENY 2.\",IF(K9<L9,\"ŽENY 3.\",IF(M9<N9,\"ŽENY 4.\",IF(O9<P9,\"ŽENY 5.\",IF(Q9<R9,\"ŽENY 6.\",IF(S9<T9,\"ŽENY novo\",\" \")))))))","v":" "},null,{"$f":"IF(AND(A8>0,E9=0),\"nulové údaje\",\" \")","v":" "}]

{"sheet":"I.ext cudz","index":4,"n_rows":9,"n_cols":46,"rows_kept":9,"cut":false,"hidden":false,"merged":[[2,6,2,7],[5,0,5,3],[6,0,6,3],[7,3,8,3],[7,1,8,1],[7,2,8,2],[1,20,3,29],[2,10,2,11],[2,14,2,15],[2,12,2,13],[2,8,2,9],[6,27,6,29],[4,0,4,3],[0,20,0,29],[1,4,2,5],[5,27,5,29],[5,20,5,21],[0,0,0,4],[0,5,0,16],[1,18,2,19],[1,6,1,17],[1,0,2,3],[2,16,2,17],[5,22,5,23],[5,24,5,26],[4,24,4,25],[4,26,4,29],[8,27,8,28],[8,21,8,22],[8,23,8,24],[8,25,8,26],[7,21,7,29],[4,20,4,21],[4,22,4,23],[6,22,6,23],[7,4,7,19],[6,24,6,26],[6,20,6,21]]}
["I. Zapísaní študujúci (fyzické osoby)",null,null,null,null,"EXTERNÁ FORMA - CUDZINCI",null,null,null,null,null,null,null,null,null,null,null,"Fakulta",null,{"$f":"Identif!AV4","v":0}]
["Študijné odbory a programy",null,null,null,"1. - 6.",null,"v akademickom roku",null,null,null,null,null,null,null,null,null,null,null,"Novoprijatí",null,"Výpis chýb v jednotlivých riadkoch"]
[null,null,null,null,null,null,"1.",null,"2.",null,"3.",null,"4.",null,"5.",null,"6.",null,null,null,null,null,null,null,null,null,null,null,null,null,null,null,null,null,null,null,null,null,null,null,null,null,null,null,"kod_uip","nazov_uip"]
["kód","dĺžka","druh","forma","spolu","ženy","spolu","ženy","spolu","ženy","spolu","ženy","spolu","ženy","spolu","ženy","spolu","ženy","spolu","ženy"]
["celkom",null,null,null,{"$f":"SUM(G5+I5+K5+M5+O5+Q5)","v":0},{"$f":"SUM(H5+J5+L5+N5+P5+R5)","v":0},{"$f":"SUM(G9:G1500)","v":0},{"$f":"SUM(H9:H1500)","v":0},0,0,0,0,0,0,0,0,0,0,0,0,{"$f":"IF(G6>G5,\"Opakujúci > CELKOM 1. ročník\",IF(I6>I5,\"Opakujúci > CELKOM 2. ročník\",IF(K6>K5,\"Opakujúci > CELKOM 3. ročník\",IF(M6>M5,\"Opakujúci > CELKOM 4. ročník\",IF(O6>O5,\"Opakujúci > CELKOM 5. ročník\",IF(Q6>Q5,\"Opakujúci > CELKOM 6. ročník\",\" \"))))))","v":" "},null,{"$f":"IF(H6>H5,\"Opak. ženy > CELKOM 1. r\",IF(J6>J5,\"Opak. ženy > CELKOM 2. r\",IF(L6>L5,\"Opak. ženy > CELKOM 3. r\",IF(N6>N5,\"Opak. ženy > CELKOM 4. r\",IF(P6>P5,\"Opak. ženy > CELKOM 5. r\",IF(R6>R5,\"Opak. ženy > CELKOM 6. r\",\" \"))))))","v":" "},null,{"$f":"IF(G7>G5,\"Samoplatci > CELKOM 1. ročník\",IF(I7>I5,\"Samoplatci > CELKOM 2. ročník\",IF(K7>K5,\"Samoplatci > CELKOM 3. ročník\",IF(M7>M5,\"Samoplatci > CELKOM 4. ročník\",IF(O7>O5,\"Samoplatci > CELKOM 5. ročník\",IF(Q7>Q5,\"Samoplatci > CELKOM 6. ročník\",IF(S7>S5,\"Samoplatci > CELKOM novopr.\",\" \")))))))","v":" "},null,{"$f":"IF(H7>H5,\"Samopl. ženy > CELKOM 1. ročník ženy\",IF(J7>J5,\"Samopl. ženy > CELKOM 2. ročník ženy\",IF(L7>L5,\"Samopl. ženy > CELKOM 3. ročník ženy\",IF(N7>N5,\"Samopl. ženy > CELKOM 4. ročník ženy\",IF(P7>P5,\"Samopl. ženy > CELKOM 5. ročník ženy\",IF(R7>R5,\"Samopl. ženy > CELKOM 6. ročník ženy\",IF(T7>T5,\"Samopl. ženy > CELKOM ženy novoprijaté\",\" \")))))))","v":" "}]
[null,null,null,null,{"$f":"SUM(G6+I6+K6+M6+O6+Q6)","v":0},{"$f":"SUM(H6+J6+L6+N6+P6+R6)","v":0},null,null,null,null,null,null,null,null,null,null,null,null,null,null,{"$f":"IF(G6<H6,\"Opak. ženy > spolu 1. ročník\",IF(I6<J6,\"Opak. ženy > spolu 2. ročník\",IF(K6<L6,\"Opak. ženy > spolu 3. ročník\",IF(M6<N6,\"Opak. ženy > spolu 4. ročník\",IF(O6<P6,\"Opak. ženy > spolu 5. ročník\",IF(Q6<R6,\"Opak. ženy > spolu 6. ročník\",\" \"))))))","v":" "},null,{"$f":"IF(G6<S6,\"Opak. novo > 1. ročník\",IF(H6<T6,\"Opak. ženy novo > ženy 1. roč.\",\" \"))","v":" "},null,{"$f":"IF(AND(G5=G6,  H5<>H6),\"1. ročník CELKOM ženy<>ženy opak.\",IF(AND(I5=I6, J5<>J6),\"2. ročník CELKOM ženy<>ženy opak.\",IF(AND(K5=K6, L5<>L6),\"3. ročník CELKOM ženy<>ženy opak.\", IF(AND(M5=M6, N5<>N6),\"4. ročník CELKOM ženy<>ženy opak.\",IF(AND(O5=O6, P5<>P6),\"5. ročník CELKOM ženy<>ženy opak.\",IF(AND(Q5=Q6, R5<>R6),\"6. ročník CELKOM ženy<>ženy opak.\",\" \"))))))","v":" "},null,null,{"$f":"IF(G5-H5<G6-H6,\"1. CELKOM ženy nesedia na ženy opak.\",IF(I5-J5<I6-J6,\"2. CELKOM ženy nesedia na ženy opak.\",IF(K5-L5<K6-L6,\"3. CELKOM ženy nesedia na ženy opak.\", IF(M5-N5<M6-N6,\"4. CELKOM ženy nesedia na ženy opak.\",IF(O5-P5<O6-P6,\"5. CELKOM ženy nesedia na ženy opak.\",IF(Q5-R5<Q6-R6,\"6. CELKOM ženy nesedia na ženy opak.\",\" \"))))))","v":" "}]
["z celkového počtu samoplatci, platci",null,null,null,0,0,null,null,null,null,null,null,null,null,null,null,null,null,null,null,{"$f":"IF(G7<H7,\"Samopl. ženy > spolu 1. ročník\",IF(I7<J7,\"Samopl. ženy > spolu 2. ročník\",IF(K7<L7,\"Samopl. ženy > spolu 3. ročník\",IF(M7<N7,\"Samopl. ženy > spolu 4. ročník\",IF(O7<P7,\"Samopl.. ženy > spolu 5. ročník\",IF(Q7<R7,\"Samopl. ženy > spolu 6. ročník\",IF(S7<T7,\"Samopl. ženy > spolu novoprijatí\",\" \")))))))","v":" "},null,{"$f":"IF(G7<S7,\"Sam. novo > 1.ročník\",IF(H7<T7,\"Sam. ženy novo > ženy 1. roč\",IF(AND(G7>0,S7=0),\"Sam. 1. roč > 0 a novo = 0\",\" \")))","v":" "},null,{"$f":"IF(AND(G5=G7,  H5<>H7),\"1. ročník CELKOM ženy<>ženy samop.\",IF(AND(I5=I7, J5<>J7),\"2. ročník CELKOM ženy<>ženy samop.\",IF(AND(K5=K7, L5<>L7),\"3. ročník CELKOM ženy<>ženy samop.\", IF(AND(M5=M7, N5<>N7),\"4. ročník CELKOM ženy<>ženy samop.\",IF(AND(O5=O7, P5<>P7),\"5. ročník CELKOM ženy<>ženy samop.\",IF(AND(Q5=Q7, R5<>R7),\"6. ročník CELKOM ženy<>ženy samop.\",IF(AND(S5=S7, T5<>T7),\"Novo CELKOM ženy<>ženy samop.\",\" \")))))))","v":" "},null,null,{"$f":"IF(G5-H5<G7-H7,\"1. CELKOM ženy nesedia na ženy sam.\",IF(I5-J5<I7-J7,\"2. CELKOM ženy nesedia na ženy sam.\",IF(K5-L5<K7-L7,\"3. CELKOM ženy nesedia na ženy sam.\", IF(M5-N5<M7-N7,\"4. CELKOM ženy nesedia na ženy sam.\",IF(O5-P5<O7-P7,\"5. CELKOM ženy nesedia na ženy sam.\",IF(Q5-R5<Q7-R7,\"6. CELKOM ženy nesedia na ženy sam.\",IF(S5-T5<S7-T7,\"Novo. CELKOM ženy nesedia na ženy sam.\",\" \")))))))","v":" "}]
[null,null,"99",null,null,null,null,null,null,null,null,null,null,null,null,null,null,null,null,null,{"$f":"CONCATENATE(A8,\"/\",A9)","v":"/"},{"$f":"E8","v":0}]
[null,null,null,null,{"$f":"SUM(G9+I9+K9+M9+O9+Q9)","v":0},{"$f":"SUM(H9+J9+L9+N9+P9+R9)","v":0},null,null,null,null,null,null,null,null,null,null,null,null,null,null,{"$f":"IF(G9<S9,\"NOVO\",IF(H9<T9,\"NOVO ženy\",\" \"))","v":" "},{"$f":"IF(S9=G9,IF(T9<>H9,\"Novo ženy<>ženy 1r\",\" \"),IF(G9-H9<S9-T9,\"Nesprávne ženy\",\" \"))","v":" "},null,{"$f":"IF(G9>1,IF(S9=0,\"Nevyplnení novo\",\" \"),\" \")","v":" "},null,{"$f":"IF(G9<H9,\"ŽENY 1.\",IF(I9<J9,\"ŽENY 2.\",IF(K9<L9,\"ŽENY 3.\",IF(M9<N9,\"ŽENY 4.\",IF(O9<P9,\"ŽENY 5.\",IF(Q9<R9,\"ŽENY 6.\",IF(S9<T9,\"ŽENY novo\",\" \")))))))","v":" "},null,{"$f":"IF(AND(A8>0,E9=0),\"nulové údaje\",\" \")","v":" "}]

{"sheet":"IV.den","index":5,"n_rows":7,"n_cols":14,"rows_kept":7,"cut":false,"hidden":false,"merged":[[6,10,6,12],[3,1,3,2],[4,1,4,2],[5,0,5,1],[5,8,5,13],[1,3,3,3],[0,4,0,5],[1,11,1,12],[2,8,4,9],[1,0,2,2],[1,4,3,4],[1,5,3,5],[1,6,1,7],[2,6,2,7],[0,9,0,13]]}
["IV. Študenti cudzinci podľa štátneho občianstva",null,null,null,"DENNÁ FORMA",null,"Fakulta",{"$f":"Identif!AV4","v":0},{"$f":"COUNTA(A8:A300)","v":0},"Kontrola odd. IV. na odd. I. cudzinci podľa odborov - externá forma"]
[null,null,null,"Druh","spolu","ženy","z toho s trvalým",null,null,null,null,"cudzinci z I. odd."]
[null,null,null,null,null,null,"pobytom v SR",null,{"$f":"IF(E6<>L4,\"Súčet S2,  S3<>súčet podľa odborov v oranžovo vyznačených poliach\",IF(F6<>M4,\"Súčet S2,  S3<>súčet podľa odborov v oranžovo vyznačených poliach\",\" \"))","v":" "},null,null,"spolu","ženy"]
["kód","názov štátu",null,null,null,null,"spolu","ženy",null,null,null,{"$f":"'I.den cudz'!E5","v":0},{"$f":"'I.den cudz'!F5","v":0}]
["a","b",null,"c",2,3,4,5]
["Spolu",null,"D",null,{"$f":"SUM(E7:E1000)","v":0},{"$f":"SUM(F7:F1000)","v":0},{"$f":"SUM(G7:G1000)","v":0},{"$f":"SUM(H7:H1000)","v":0},"Výpis chýb odd. IV. v jednotlivých riadkoch"]
[null,null,"D","9",null,null,null,null,{"$f":"IF(E7<F7,\" stĺ. 2 < stĺ. 3\",IF(E7<G7,\"stĺ. 2 < stĺ. 4\",IF(F7<H7,\"stĺ. 3 < stĺ. 5\",IF(G7<H7,\"stĺ. 4 < stĺ. 5\",\" \"))))","v":" "},{"$f":"IF(E7=G7,IF(F7<>H7,\"S2 = S4 a S3 <> S5\",\" \"),\" \")","v":" "},{"$f":"IF(G7-H7>E7-F7,\"Nesprávne ženy v S3 alebo S5\",\" \")","v":" "},null,null,{"$f":"IF(A7=0,IF(E7>0,\"nevyplnený štát\",\" \"),IF(A7>0,IF(E7=0,\"nulové údaje\",\" \"),\" \"))","v":" "}]

{"sheet":"IV.ext","index":6,"n_rows":7,"n_cols":14,"rows_kept":7,"cut":false,"hidden":false,"merged":[[6,10,6,12],[1,0,2,2],[3,1,3,2],[5,0,5,1],[4,1,4,2],[1,3,3,3],[0,4,0,5],[1,4,3,4],[5,8,5,13],[1,6,1,7],[2,6,2,7],[1,11,1,12],[2,8,4,9],[1,5,3,5],[0,9,0,13]]}
["IV. Študenti cudzinci podľa štátneho občianstva",null,null,null,"EXTERNÁ FORMA",null,"Fakulta",{"$f":"Identif!AV4","v":0},{"$f":"COUNTA(A8:A300)","v":0},"Kontrola odd. IV. na odd. I. cudzinci podľa odborov - externá forma"]
[null,null,null,"Druh","spolu","ženy","z toho s trvalým",null,null,null,null,"cudzinci z I. odd."]
[null,null,null,null,null,null,"pobytom v SR",null,{"$f":"IF(E6<>L4,\"Súčet S2,  S3<>súčet podľa odborov v oranžovo vyznačených poliach\",IF(F6<>M4,\"Súčet S2,  S3<>súčet podľa odborov v oranžovo vyznačených poliach\",\" \"))","v":" "},null,null,"spolu","ženy"]
["kód","názov štátu",null,null,null,null,"spolu","ženy",null,null,null,{"$f":"'I.ext cudz'!E5","v":0},{"$f":"'I.ext cudz'!F5","v":0}]
["a","b",null,"c",2,3,4,5]
["Spolu",null,"E",null,{"$f":"SUM(E7:E1000)","v":0},{"$f":"SUM(F7:F1000)","v":0},{"$f":"SUM(G7:G1000)","v":0},{"$f":"SUM(H7:H1000)","v":0},"Výpis chýb odd. IV. v jednotlivých riadkoch"]
[null,null,"E","9",null,null,null,null,{"$f":"IF(E7<F7,\" stĺ. 2 < stĺ. 3\",IF(E7<G7,\"stĺ. 2 < stĺ. 4\",IF(F7<H7,\"stĺ. 3 < stĺ. 5\",IF(G7<H7,\"stĺ. 4 < stĺ. 5\",\" \"))))","v":" "},{"$f":"IF(E7=G7,IF(F7<>H7,\"S2 = S4 a S3 <> S5\",\" \"),\" \")","v":" "},{"$f":"IF(G7-H7>E7-F7,\"Nesprávne ženy v S3 alebo S5\",\" \")","v":" "},null,null,{"$f":"IF(A7=0,IF(E7>0,\"nevyplnený štát\",\" \"),IF(A7>0,IF(E7=0,\"nulové údaje\",\" \"),\" \"))","v":" "}]

{"sheet":"V11a","index":7,"n_rows":26,"n_cols":27,"rows_kept":26,"cut":false,"hidden":false,"merged":[[20,0,20,1],[7,0,19,0],[24,3,24,18],[3,13,4,14],[4,11,4,12],[22,0,22,18],[1,2,5,2],[1,0,1,1],[2,3,2,6],[3,3,3,4],[3,5,4,6],[2,7,2,10],[3,7,3,8],[3,9,4,10],[4,7,4,8],[4,3,4,4],[3,19,3,26],[4,19,4,26],[6,19,6,26],[2,0,2,1],[1,11,1,18],[2,11,2,14],[3,11,3,12],[5,0,5,1],[6,0,6,1],[2,15,2,18],[3,15,3,16],[3,17,4,18],[4,15,4,16],[1,3,1,10],[3,0,3,1],[4,0,4,1]]}
["X. Veková štruktúra študujúcich doktorandského štúdia",null,null,null,null,null,null,null,null,null,null,null,null,null,null,null,null,"Fakulta",{"$f":"Identif!AV4","v":0}]
[null,null,"I.r.","Študujúci vr. novoprijatých vo forme štúdia",null,null,null,null,null,null,null,"Novoprijatí vo forme štúdia"]
["Dosiahnutý",null,null,"dennej",null,null,null,"externej",null,null,null,"dennej",null,null,null,"externej"]
["vek od 1. 1.",null,null,"slov. štátneho",null,"cudzinci",null,"slov. štátneho",null,"cudzinci",null,"slov. štátneho",null,"cudzinci",null,"slov. štátneho",null,"cudzinci",null,"Výpis chýb v oddiele  X."]
["do 31. 12.",null,null,"občianstva",null,null,null,"občianstva",null,null,null,"občianstva",null,null,null,"občianstva",null,null,null,"v jednotlivých riadkoch"]
[null,null,null,"spolu","ženy","spolu","ženy","spolu","ženy","spolu","ženy","spolu","ženy","spolu","ženy","spolu","ženy","spolu","ženy"]
["a",null,"b",1,2,3,4,5,6,7,8,9,10,11,12,13,14,15,16,{"$f":"IF(SUM(D8:S10)>0,\"Vyplnení menej ako 23-roční v žltých poliach - nepravdepodobný údaj - pravda? Pre Ukrajinu OK\",\" \")","v":" "}]
["Študujúci a novoprijatí podľa veku (v rokoch)",20,"1001",null,null,null,null,null,null,null,null,null,null,null,null,null,null,null,null,{"$f":"IF(D8<E8,\"stĺ. 1 < stĺ. 2\",IF(F8<G8,\"stĺ. 3 < stĺ. 4\",IF(H8<I8,\"stĺ. 5 < stĺ. 6\",IF(J8<K8,\"stĺ. 7 < stĺ. 8\",\" \"))))","v":" "},{"$f":"IF(L8<M8,\"stĺ. 9 < stĺ. 10\",IF(N8<O8,\"stĺ. 11 < stĺ. 12\",IF(P8<Q8,\"stĺ. 13 < stĺ. 14\",IF(R8<S8,\"stĺ. 15 < stĺ. 16\",\" \"))))","v":" "},{"$f":"IF(D8<L8,\"stĺ. 1 < stĺ. 9\",IF(E8<M8,\"stĺ. 2 < stĺ. 10\",IF(F8<N8,\"stĺ. 3 < stĺ. 11\",IF(G8<O8,\"stĺ. 4 < stĺ. 12\",\" \"))))","v":" "},{"$f":"IF(H8<P8,\"stĺ. 5 < stĺ. 13\",IF(I8<Q8,\"stĺ. 6 < stĺ. 14\",IF(J8<R8,\"stĺ. 7 < stĺ. 15\",IF(K8<S8,\"stĺ. 8 < stĺ. 16\",\" \"))))","v":" "},{"$f":"IF(D8=L8,IF(E8<>M8,\"S1=S9 a S2<>S10\",\" \"),IF(D8-E8<L8-M8,\"Zle ženy v S10\",\" \"))","v":" "},{"$f":"IF(F8=N8,IF(G8<>O8,\"S3=S11 a S4<>S12\",\" \"),IF(F8-G8<N8-O8,\"Zle ženy v S12\",\" \"))","v":" "},{"$f":"IF(H8=P8,IF(I8<>Q8,\"S5=S13 a S6<>S14\",\" \"),IF(H8-I8<P8-Q8,\"Zle ženy v S14\",\" \"))","v":" "},{"$f":"IF(J8=R8,IF(K8<>S8,\"S7=S15 a S8<>S16\",\" \"),IF(J8-K8<R8-S8,\"Zle ženy v S16\",\" \"))","v":" "}]
[null,21,"1002",null,null,null,null,null,null,null,null,null,null,null,null,null,null,null,null,{"$f":"IF(D9<E9,\"stĺ. 1 < stĺ. 2\",IF(F9<G9,\"stĺ. 3 < stĺ. 4\",IF(H9<I9,\"stĺ. 5 < stĺ. 6\",IF(J9<K9,\"stĺ. 7 < stĺ. 8\",\" \"))))","v":" "},{"$f":"IF(L9<M9,\"stĺ. 9 < stĺ. 10\",IF(N9<O9,\"stĺ. 11 < stĺ. 12\",IF(P9<Q9,\"stĺ. 13 < stĺ. 14\",IF(R9<S9,\"stĺ. 15 < stĺ. 16\",\" \"))))","v":" "},{"$f":"IF(D9<L9,\"stĺ. 1 < stĺ. 9\",IF(E9<M9,\"stĺ. 2 < stĺ. 10\",IF(F9<N9,\"stĺ. 3 < stĺ. 11\",IF(G9<O9,\"stĺ. 4 < stĺ. 12\",\" \"))))","v":" "},{"$f":"IF(H9<P9,\"stĺ. 5 < stĺ. 13\",IF(I9<Q9,\"stĺ. 6 < stĺ. 14\",IF(J9<R9,\"stĺ. 7 < stĺ. 15\",IF(K9<S9,\"stĺ. 8 < stĺ. 16\",\" \"))))","v":" "},{"$f":"IF(D9=L9,IF(E9<>M9,\"S1=S9 a S2<>S10\",\" \"),IF(D9-E9<L9-M9,\"Zle ženy v S10\",\" \"))","v":" "},{"$f":"IF(F9=N9,IF(G9<>O9,\"S3=S11 a S4<>S12\",\" \"),IF(F9-G9<N9-O9,\"Zle ženy v S12\",\" \"))","v":" "},{"$f":"IF(H9=P9,IF(I9<>Q9,\"S5=S13 a S6<>S14\",\" \"),IF(H9-I9<P9-Q9,\"Zle ženy v S14\",\" \"))","v":" "},{"$f":"IF(J9=R9,IF(K9<>S9,\"S7=S15 a S8<>S16\",\" \"),IF(J9-K9<R9-S9,\"Zle ženy v S16\",\" \"))","v":" "}]
[null,22,"1003",null,null,null,null,null,null,null,null,null,null,null,null,null,null,null,null,{"$f":"IF(D10<E10,\"stĺ. 1 < stĺ. 2\",IF(F10<G10,\"stĺ. 3 < stĺ. 4\",IF(H10<I10,\"stĺ. 5 < stĺ. 6\",IF(J10<K10,\"stĺ. 7 < stĺ. 8\",\" \"))))","v":" "},{"$f":"IF(L10<M10,\"stĺ. 9 < stĺ. 10\",IF(N10<O10,\"stĺ. 11 < stĺ. 12\",IF(P10<Q10,\"stĺ. 13 < stĺ. 14\",IF(R10<S10,\"stĺ. 15 < stĺ. 16\",\" \"))))","v":" "}," "," "," "," "," "," "]
[null,23,"1004",null,null,null,null,null,null,null,null,null,null,null,null,null,null,null,null," "," "," "," "," "," "," "," "]
[null,24,"1005",null,null,null,null,null,null,null,null,null,null,null,null,null,null,null,null," "," "," "," "," "," "," "," "]
[null,25,"1006",null,null,null,null,null,null,null,null,null,null,null,null,null,null,null,null," "," "," "," "," "," "," "," "]
[null,26,"1007",null,null,null,null,null,null,null,null,null,null,null,null,null,null,null,null," "," "," "," "," "," "," "," "]
[null,27,"1008",null,null,null,null,null,null,null,null,null,null,null,null,null,null,null,null," "," "," "," "," "," "," "," "]
[null,28,"1009",null,null,null,null,null,null,null,null,null,null,null,null,null,null,null,null," "," "," "," "," "," "," "," "]
[null,29,"1010",null,null,null,null,null,null,null,null,null,null,null,null,null,null,null,null," "," "," "," "," "," "," "," "]
[null,"30 - 34","1011",null,null,null,null,null,null,null,null,null,null,null,null,null,null,null,null," "," "," "," "," "," "," "," "]
[null,"35 - 39","1012",null,null,null,null,null,null,null,null,null,null,null,null,null,null,null,null," "," "," "," "," "," "," "," "]
[null,"40 a viac","1013",null,null,null,null,null,null,null,null,null,null,null,null,null,null,null,null," "," "," "," "," "," "," "," "]
["Spolu",null,"1016",{"$f":"SUM(D8:D20)","v":0},0,0,0,0,0,0,0,0,0,0,0,0,0,0,0]
[]
["Kontrola vekovej štruktúry na odd. I. študujúci a novoprijatí podľa odborov"]
[]
[null,null,null,{"$f":"IF(SUM(D21:S21)<>SUM(D26:S26),\"Súčet študujúcich resp. novoprijatých je rôzny od súčtu podľa odborov v oranžovo vyznačených poliach\",\" \")","v":" "}]
[null,null,null,{"$f":"'I.den SR'!E5","v":0},{"$f":"'I.den SR'!F5","v":0},{"$f":"'I.den cudz'!E5","v":0},{"$f":"'I.den cudz'!F5","v":0},{"$f":"'I.ext SR'!E5","v":0},{"$f":"'I.ext SR'!F5","v":0},{"$f":"'I.ext cudz'!E5","v":0},{"$f":"'I.ext cudz'!F5","v":0},{"$f":"'I.den SR'!S5","v":0},{"$f":"'I.den SR'!T5","v":0},{"$f":"'I.den cudz'!S5","v":0},{"$f":"'I.den cudz'!T5","v":0},{"$f":"'I.ext SR'!S5","v":0},{"$f":"'I.ext SR'!T5","v":0},{"$f":"'I.ext cudz'!S5","v":0},{"$f":"'I.ext cudz'!T5","v":0}]